Cogmind - Beta 13 @@@ ROGUE MODE // 2024.03.24 @ 23:43:05 Player: Mogwok Wargfriend Result: Destroyed by 8R-6Z8(R) with Subdweller Laser Performance ------------- Evolutions (0) 0 Regions Visited (2) 400 Robots Destroyed (24) 120 Value Destroyed (448) 448 Prototype IDs (0) 0 Alien Tech Used (0) 0 Bonus (0) 0 TOTAL SCORE: 968 Bonus ------- None Cogmind --------- Core Integrity 0/250 Matter 245/300 Energy 194/200 System Corruption 1% Temperature Cool (6) Movement Core (250) Ox4 Location -10/Subcaves Parts ------- > --- POWER (1) -------- Subdweller Power Source > --- PROPULSION (2) --- Subdweller Monowheel > --- UTILITY (2) ------ (None) > --- WEAPON (2) ------- Subdweller Beam Cannon > --- INVENTORY (5) ---- Subdweller Power Source Subdweller Optics Sensor Array Scrap Shield Fragment (50) Scrap Shield Fragment (45) Peak State ------------ > --- POWER ------------ Subdweller Power Source > --- PROPULSION ------- Subdweller Monowheel > --- UTILITY ---------- Disposable Heat Sink Subdweller Optics > --- WEAPON ----------- Subdweller Machine Gun > --- INVENTORY -------- Light Ion Engine Light Ion Engine Subdweller Power Source Sensor Array Scrap Shield Fragment [Rating: 10] Favorites ----------- Power Light Ion Engine Engine Light Ion Engine Propulsion Flight Unit Wheel Wheel Flight Unit Flight Unit Utility Small Storage Unit Device Seismic Detector Storage Small Storage Unit Protection Scrap Shield Weapon Light Assault Rifle Energy Gun Medium Laser Energy Cannon Subdweller Beam Cannon Ballistic Gun Light Assault Rifle Build | -11 -10 -10 ------- Run | Yrd Mat Sub Slots Evolved . | . . . Power . | . . . Propulsion . | . . . Utility . | . . . Weapon . | . . . Parts Attached 31 | 8 11 12 Power 6 | 1 4 1 Engine 6 | 1 4 1 Core . | . . . Reactor . | . . . Propulsion 10 | 2 5 3 Treads . | . . . Leg . | . . . Wheel 4 | 2 . 2 Hover . | . . . Flight 6 | . 5 1 Utility 7 | 3 . 4 Device 5 | 2 . 3 Storage 1 | 1 . . Processor . | . . . Hackware . | . . . Protection 1 | . . 1 Artifact . | . . . Weapon 8 | 2 2 4 Energy Gun 2 | 1 . 1 Energy Cannon 1 | . . 1 Ballistic Gun 5 | 1 2 2 Ballistic Cannon . | . . . Launcher . | . . . Special Weapon . | . . . Impact Weapon . | . . . Slashing Weapon . | . . . Piercing Weapon . | . . . Special Melee Weapon . | . . . Unidentified Prototypes . | . . . Parts Lost 17 | . 6 11 Power 2 | . 2 . Propulsion 8 | . 4 4 Utility 3 | . . 3 Weapon 4 | . . 4 Highest Loss Streak 9 | . 4 9 To Critical Strikes . | . . . Average Slot Usage (%) 88 | . 96 67 Engine 13 | . 13 14 Wheel 8 | . 8 9 Flight 15 | . 18 5 Device 13 | . 14 10 Storage 10 | . 14 2 Protection 1 | . . 5 Energy Gun 3 | . 4 . Ballistic Gun 19 | . 20 17 Naked Turns . | . . . Heaviest Build 27 | 14 14 27 Greatest Support 20 | 20 20 20 Greatest Overweight (x) 8 | 1 2 8 Average Overweight (x) . | . . 1 Largest Inventory Capacity 8 | 8 8 8 Average Capacity 7 | 7 8 5 Most Carried 8 | 8 8 6 Average Carried 6 | 4 6 4 Final Capacity 8 | 8 8 5 Final Carried 8 | 8 6 5 Class Distribution -------------------- 54% | Mutant 32% | Scavenger-Mutant 12% | Subdweller-Mutant Dominant Class ---------------- Mutant | -10/Materials Subdweller-Mutant | -10/Subcaves Resources | -11 -10 -10 ----------- Run | Yrd Mat Sub Matter Collected 546 | 287 185 74 Remotely . | . . . Salvage Created 802 | 158 581 63 Parts 58 | 14 35 9 Haulers Intercepted . | . . . Recyclers Shooed 2 | . 2 . Parts Field Recycled . | . . . Retrieved Matter . | . . . Parts Self-Destructed . | . . . Prevented . | . . . Kills | -11 -10 -10 ------- Run | Yrd Mat Sub Combat Hostiles Destroyed 14 | . 12 2 Guns 14 | . 12 2 Classes Destroyed 7 | 2 4 1 Tunneler 4 | 4 . . Recycler 3 | 1 2 . Mechanic 1 | . 1 . Watcher 2 | . 2 . Swarmer 6 | . 6 . Grunt 6 | . 6 . Subdweller 2 | . . 2 Best Kill Streak 5 | 5 4 1 Combat Bots Only 4 | . 4 1 Max Kills in Single Turn 1 | 1 1 1 Gunslinging . | . . . Exploded . | . . . Melee . | . . . Uniques/NPCs Destroyed . | . . . Combat | -11 -10 -10 -------- Run | Yrd Mat Sub Hostile Shots Fired 122 | . 66 56 Missed 37 | . 20 17 Damage Taken 1378 | . 585 793 Core 261 | . 121 140 Absorbed by Shields . | . . . Core Remaining (%) 100 | 100 . . Volleys Fired 97 | 7 59 31 Largest 2 | 2 2 2 Hottest 110 | 70 70 110 Shots Fired 180 | 14 118 48 Gun 179 | 14 118 47 Cannon 1 | . . 1 Launcher . | . . . Special . | . . . Kinetic 139 | 7 90 42 Thermal 41 | 7 28 6 Explosive . | . . . Electromagnetic . | . . . Robot Hit Streak 15 | 3 15 9 Robot Miss Streak 3 | 1 3 3 Penetration Max . | . . . Secondary Targets 2 | . 2 . Max Gunslinging Chain 1 | . 1 . Shots Hit Robots 114 | 8 75 31 Core Hits 48 | 7 35 6 Critical Kills . | . . . Critical Parts Destroyed . | . . . Critical Strikes 7 | 1 4 2 Burn 5 | 1 4 . Destroy 2 | . . 2 Melee Attacks . | . . . Impact . | . . . Slashing . | . . . Piercing . | . . . Sneak Attacks . | . . . Combat Hostiles . | . . . Follow-up Attacks . | . . . Damage Inflicted 1125 | 95 754 276 Guns 1095 | 95 754 246 Cannons 30 | . . 30 Explosions . | . . . Melee . | . . . Ramming . | . . . Kinetic 730 | 32 452 246 Thermal 395 | 63 302 30 Explosive . | . . . Electromagnetic . | . . . Impact . | . . . Slashing . | . . . Piercing . | . . . Highest Corruption 1 | . 1 1 Average Corruption 1 | . 1 1 Corruption Purged . | . . . Corruption Blocked . | . . . Effects 6 | . 1 5 Message Errors 3 | . 1 2 Matter Fused 1 | . . 1 Data Loss (minor) 1 | . . 1 Weapon Failures 1 | . . 1 Overload Shots . | . . . Overflow Damage . | . . . Projectiles . | . . . Explosions . | . . . Melee . | . . . Knockbacks . | . . . Impact . | . . . Kinetic . | . . . Secondary . | . . . Self-Inflicted Damage . | . . . Shots . | . . . Rammed . | . . . Targets Rammed . | . . . Kicked . | . . . Crushed . | . . . Highest Temperature 114 | 80 114 . Average Temperature 27 | 34 26 . Received Heat Transfer 210 | . 180 30 Siege Activations . | . . . Robots Corrupted . | . . . Combat Hostiles . | . . . Parts Fried . | . . . Impact Corruptions . | . . . Robots Melted . | . . . Combat Hostiles . | . . . Parts Melted 1 | . 1 . Heat Transferred 1480 | 259 1184 37 Parts Sabotaged . | . . . Parts Stolen . | . . . Parts Stripped . | . . . Power Chain Reactions . | . . . Alert | -11 -10 -10 ------- Run | Yrd Mat Sub Peak Influence 211 | 25 211 . Initial 16 | . 16 . Average 87 | 11 97 . Maximum Alert Level 1 | . 1 . Low Security (%) 98 | 100 98 . Level 1 1 | . 1 . Level 2 . | . . . Level 3 . | . . . Level 4 . | . . . Level 5 . | . . . High Security . | . . . Max Security . | . . . Squads Dispatched 2 | . 2 . Investigation 1 | . 1 . Extermination . | . . . Reinforcement 1 | . 1 . Assault . | . . . Garrison . | . . . Intercept . | . . . Searches Triggered . | . . . Construction Impeded . | . . . Haulers Reinforced . | . . . Active Scanning Responses . | . . . Cargo Convoy Interrupts . | . . . Stealth | -11 -10 -10 --------- Run | Yrd Mat Sub Distress Signals 3 | . 3 . Communications Jammed . | . . . Distress Signals . | . . . Times Spotted 26 | . 20 6 Peak Tracking Total 4 | . 4 4 Tactical Retreats . | . . . Traps | -11 -10 -10 ------- Run | Yrd Mat Sub Traps Triggered 1 | . 1 . Indirectly . | . . . Trap Hack Attempts . | . . . Triggered . | . . . Disarmed . | . . . Reprogrammed . | . . . Reused . | . . . Traps Extracted . | . . . Installed . | . . . Triggered . | . . . Machines | -11 -10 -10 ---------- Run | Yrd Mat Sub Machines Disabled . | . . . Max in Single Turn . | . . . Machines Repaired . | . . . Machines Dismantled . | . . . Machines Sabotaged . | . . . Overloaded Fab Kills . | . . . Hacking | -11 -10 -10 --------- Run | Yrd Mat Sub Machines Accessed 4 | . 4 . Terminals 3 | . 3 . Fabricators . | . . . Repair Stations . | . . . Recycling Units 1 | . 1 . Scanalyzers . | . . . Garrison Access . | . . . Total Hacks 14 | . 14 . Successful 10 | . 10 . Failed 4 | . 4 . Catastrophic 1 | . 1 . Database Lockouts . | . . . Manual 9 | . 9 . Terminals 11 | . 11 . Fabricators . | . . . Repair Stations . | . . . Recycling Units 3 | . 3 . Scanalyzers . | . . . Garrison Access . | . . . Terminal Hacks 5 | . 5 . Record 1 | . 1 . Robot Analysis 4 | . 4 . Fabricator Hacks . | . . . Repair Station Hacks . | . . . Recycling Unit Hacks 2 | . 2 . Report Inventory 2 | . 2 . Scanalyzer . | . . . Garrison Access Hacks . | . . . Unauthorized Hacks 3 | . 3 . Terminals 2 | . 2 . Assimilate 1 | . 1 . Operators 1 | . 1 . Fabricators . | . . . Repair Stations . | . . . Recycling Units 1 | . 1 . Reject 1 | . 1 . Scanalyzers . | . . . Garrison Access . | . . . Data Cores Recovered . | . . . Used . | . . . Hacking Detections 4 | . 4 . Full Trace Events 1 | . 1 . Feedback Events 1 | . 1 . Corruption 1 | . 1 . Feedback Blocked . | . . . Robot Schematics Acquired . | . . . Robots Built . | . . . Authchips . | . . . Time . | . . . Total Robot Build Rating . | . . . Part Schematics Acquired . | . . . Parts Built . | . . . Authchips . | . . . Time . | . . . Total Part Build Rating . | . . . Parts Repaired . | . . . Time . | . . . Parts Recycled . | . . . Recycled Matter . | . . . Retrieved Matter . | . . . Retrieved Components . | . . . Parts Scanalyzed . | . . . Part Schematics Acquired . | . . . Parts Damaged . | . . . Bothacking | -11 -10 -10 ------------ Run | Yrd Mat Sub Used RIF Installer . | . . . Robots Hacked . | . . . Non-combat . | . . . Combat . | . . . Robot Hacks Applied . | . . . Relay Couplers Released . | . . . Fabnet Peak Effective % . | . . . Robots Rewired . | . . . Allies Hacked . | . . . Hacks Repelled . | . . . Allies | -11 -10 -10 -------- Run | Yrd Mat Sub Total Allies 1 | . 1 . Largest Group 1 | . 1 1 Highest-Rated Group 10 | . 10 10 Highest-Rated Ally 10 | . 10 10 Total Orders . | . . . Ally Attacks . | . . . Total Damage . | . . . Kills . | . . . Allies Corrupted . | . . . Allies Melted . | . . . Intel | -11 -10 -10 ------- Run | Yrd Mat Sub Robot Analysis Total 4 | . 4 . Derelict Logs Recovered . | . . . Drone Launches . | . . . Drone Recoveries . | . . . Exploration | -11 -10 -10 ------------- Run | Yrd Mat Sub Turns Passed 1331 | 115 864 352 Spaces Moved 772 | 92 537 143 Core 43 | 6 . 37 Treads . | . . . Legs . | . . . Wheels 334 | 86 171 77 Hover . | . . . Flight 395 | . 366 29 Fastest Speed 50 | 50 80 100 Average Speed 115 | 79 105 177 Slowest Speed 450 | 95 205 450 Overloaded Moves . | . . . Propulsion Burnouts . | . . . Robots Hopped . | . . . Cave-ins Triggered . | . . . Exploration Rate (%) 28 | 4 66 15 Regions Visited 2 Branch Regions 1 Pre-discovered Areas . | . . . Known Exits Taken . | . . . Unknown Exits Taken 2 | 1 1 . Scrap Searched . | . . . Spaces Dug . | . . . Terrain Destroyed . | . . . Melee . | . . . Projectile . | . . . AOE . | . . . Terrain Rammed . | . . . Walls Destroyed . | . . . Machines Disabled . | . . . Actions | -11 -10 -10 --------- Run | Yrd Mat Sub Total 1055 | 119 738 198 Wait 117 | . 115 2 Move 770 | 91 536 143 Hop . | . . . Pick Up 20 | 10 6 4 Fast Attach 18 | 7 4 7 Attach 10 | 1 6 3 Detach 5 | 1 4 . Swap 3 | . 1 2 Drop 15 | 2 7 6 Fire 97 | 7 59 31 Melee . | . . . Ram . | . . . Kick . | . . . Crush . | . . . Escape Stasis . | . . . Rewire . | . . . Trap . | . . . Miscellaneous . | . . . Route ------- -11/Scrapyard -10/Materials (discovered 3 exits: [*Mat] / [*Min] / [*Sub]) -10/Subcaves (discovered 1 exit: [*Mat]) History --------- Turn | Location | Event 2 | -11/Scrapyard | Met Revision 17 15 | -11/Scrapyard | Discovered new exit (range 15) 116 | -11/Scrapyard | Entered Materials 310 | -10/Materials | Build established: Mutant 480 | -10/Materials | Discovered new exit (range 16) 667 | -10/Materials | Build established: Scavenger-Mutant 791 | -10/Materials | Lost 4 parts (1p3n) 818 | -10/Materials | Discovered new exit (range 16) 965 | -10/Materials | Discovered new exit (range 11) 980 | -10/Materials | Entered Subcaves 980 | -10/Subcaves | Accompanied by 1 ally 1015 | -10/Subcaves | Core integrity fell below 50% 1058 | -10/Subcaves | Build established: Mutant 1116 | -10/Subcaves | Lost 9 parts (4n2u3w) 1142 | -10/Subcaves | Discovered new exit (range 19) 1242 | -10/Subcaves | Shifting Twisted Machinery released Sub. Beam Cannon 1302 | -10/Subcaves | Core integrity fell below 20% 1332 | -10/Subcaves | Destroyed by 8R-6Z8(R) with Subdweller Laser Last Messages --------------- 01105_ Dropped Lgt. Ion Engine. 01109_ Acquired Scrap Shield Fragment. 01132_ Acquired 11 matter. 01142_ EXIT=FOUND 01182_ B LI9F3MHF15Y1D40ZML2 547><,P